bitfinex-derivatives/quotes_ETHF0:USTF0_20250103
["timestamp","ask_amount","ask_price","bid_price","bid_amount"]
[1735866096380,40.8,3451.4,3451.3,0.29001]
[1735866097278,43.07655175,3451.4,3451.3,0.29001]
[1735866098482,2.27655175,3451.4,3451.3,0.29001]
[1735866098782,2.27655175,3451.4,3451.1,7.76939394]
[1735866098783,0.29002,3451.3,3451.1,7.76939394]
[1735866099103,40.8,3451.2,3451.1,8.05942394]
[1735866100080,43.07655175,3451.2,3451.1,8.05942394]
[1735866101388,43.07655175,3451.2,3451.1,4.85162394]
[1735866103084,2.27655175,3451.2,3451.1,4.85162394]
[1735866106295,2.27655175,3451.2,3451.1,0.29003]
[1735866106296,3.84788739,3451.2,3451.1,0.29003]
[1735866107299,3.41267687,3451.2,3451.1,0.29003]
[1735866108700,44.21267687,3451.3,3451.1,4.56159394]
[1735866108898,44.21267687,3451.3,3451.2,0.29002]
[1735866109502,44.50269687,3451.3,3451.2,0.29002]
[1735866109703,44.21267687,3451.3,3451.2,0.29002]
[1735866110409,41.23519783,3451.3,3451.2,0.29002]
[1735866111905,41.52521783,3451.3,3451.2,0.29002]
[1735866112100,41.23519783,3451.3,3451.2,0.29002]
[1735866112808,0.29003,3451.1,3451.0,4.56159394]
[1735866113406,3.49783,3451.1,3451.0,4.56159394]
[1735866114406,7.79708249,3451.1,3450.5,4.56159394]
[1735866114604,7.79708249,3451.1,3450.8,0.29006]
[1735866114805,0.29005,3450.9,3450.8,0.29006]
[1735866115212,0.29004,3451.0,3450.8,0.29006]
[1735866115509,7.79708249,3451.1,3450.5,4.56159394]
[1735866115711,3.2078,3451.1,3450.5,4.56159394]
[1735866115901,0.29005,3451.0,3450.9,0.29005]
[1735866116410,3.2078,3451.1,3451.0,0.29004]
[1735866116611,3.2078,3451.1,3450.6,2.29718345]
[1735866116803,3.2078,3451.1,3451.0,0.29004]
[1735866117005,3.2078,3451.1,3450.6,2.29718345]
[1735866117204,7.76487411,3451.1,3450.6,6.85877739]
[1735866117414,8.05491411,3451.1,3450.6,6.85877739]
[1735866117813,0.29005,3450.9,3450.7,0.29006]
[1735866118113,0.29005,3451.0,3450.8,0.29005]
[1735866118509,0.29005,3450.9,3450.8,0.29005]
[1735866118708,3.70813758,3450.9,3450.6,4.56159394]
[1735866119012,3.70813758,3450.9,3450.7,0.29006]
[1735866120010,3.85334708,3450.8,3450.7,0.29006]
[1735866120205,3.85334708,3450.8,3450.5,4.56159394]
[1735866120406,0.29008,3450.6,3450.5,4.56159394]
[1735866121343,0.4352595,3450.6,3450.2,4.56159394]
[1735866121502,0.29009,3450.5,3450.4,0.29009]
[1735866121706,0.7253395,3450.6,3450.2,4.56159394]
[1735866122003,0.7253395,3450.6,3450.5,0.29008]
[1735866122714,0.29008,3450.6,3450.5,0.29008]
[1735866123108,7.76487411,3450.7,3450.1,4.56159394]
[1735866123313,7.76487411,3450.7,3450.3,2.29718345]
[1735866123526,7.76487411,3450.7,3450.6,0.29008]
[1735866123711,3.2078,3450.7,3450.6,0.29008]
[1735866125219,6.62328689,3450.7,3450.6,0.29008]
[1735866126414,3.93317,3450.7,3450.6,0.29008]
[1735866126715,0.29009,3450.5,3450.3,0.2901]
[1735866127314,0.29009,3450.5,3450.1,4.56159394]
[1735866127514,0.29009,3450.5,3450.4,0.29009]
[1735866127713,2.56723978,3450.5,3450.4,0.29009]
[1735866128114,2.27714978,3450.5,3450.4,0.29009]
[1735866130519,2.27714978,3450.5,3450.0,6.85877739]
[1735866130716,2.56723978,3450.5,3450.3,0.29009]
[1735866130912,2.27714978,3450.5,3450.4,0.29009]
[1735866133023,2.27714978,3450.5,3450.3,2.29718345]
[1735866133323,2.56722978,3450.6,3450.4,0.29009]
[1735866134723,2.27714978,3450.6,3450.3,2.29718345]
[1735866134917,2.27714978,3450.6,3450.5,0.29008]
[1735866135222,2.27714978,3450.6,3450.5,1.42108]
[1735866135929,2.27714978,3450.8,3450.7,0.29007]
[1735866137322,0.29006,3450.8,3450.7,0.29007]
[1735866138523,3.70577467,3450.9,3450.5,1.131]
[1735866138725,3.70577467,3450.9,3450.7,0.29006]
[1735866139113,3.41572467,3450.9,3450.7,0.29006]
[1735866139319,0.29006,3450.8,3450.7,0.29006]
[1735866140217,3.41572467,3450.9,3450.5,1.131]
[1735866140415,0.29008,3450.6,3450.5,1.131]
[1735866142515,2.27701873,3450.7,3450.5,1.131]
[1735866142719,2.56708873,3450.7,3450.5,1.42108]
[1735866142921,0.29008,3450.6,3450.5,0.29008]
[1735866144327,0.29008,3450.6,3450.4,1.42109]
[1735866144919,2.27701873,3450.7,3450.4,0.29009]
[1735866145144,0.29008,3450.6,3450.4,0.29009]
[1735866145323,0.29009,3450.4,3450.3,3.71828345]
[1735866145534,0.29009,3450.4,3450.3,1.131]
[1735866146123,0.2901,3450.3,3450.2,4.56159394]
[1735866146327,3.4979,3450.3,3450.2,4.56159394]
[1735866146526,3.2078,3450.3,3450.0,4.56159394]
[1735866146734,0.29012,3450.1,3450.0,4.56159394]
[1735866148016,41.09012,3450.1,3450.0,4.56159394]
[1735866148422,0.29013,3450.0,3449.8,0.29014]
[1735866148624,44.21572467,3450.1,3449.6,2.29718345]
[1735866148820,0.29013,3450.0,3449.9,0.29013]
[1735866149729,2.56869187,3450.0,3449.9,0.29013]
[1735866150128,2.56869187,3450.0,3449.6,6.85877739]
[1735866150129,2.56869187,3450.0,3449.8,0.29014]
[1735866150830,2.27856187,3450.0,3449.6,6.85877739]
[1735866151028,0.29013,3449.9,3449.7,0.29015]
[1735866151230,2.56869187,3450.0,3449.8,0.29014]
[1735866153137,2.27856187,3450.0,3449.8,0.29014]
[1735866153332,0.29015,3449.8,3449.6,4.85174394]
[1735866154234,2.27856187,3450.0,3449.6,4.85174394]
[1735866154430,2.27856187,3450.0,3449.5,5.69259394]
[1735866154639,2.27856187,3450.0,3449.7,0.29015]
[1735866154929,0.29014,3449.8,3449.5,5.69259394]
[1735866155136,0.29014,3449.8,3449.6,0.29015]
[1735866156130,0.29014,3449.8,3449.7,0.29015]
[1735866156331,2.56870187,3449.9,3449.7,0.29015]
[1735866156737,2.27856187,3449.9,3449.5,4.56159394]
[1735866157033,0.29016,3449.6,3449.5,4.56159394]
[1735866158534,3.8511679,3449.6,3449.2,3.49799]
[1735866158835,0.29018,3449.4,3449.2,3.49799]
[1735866159638,3.2078,3449.5,3449.0,4.56159394]
[1735866160035,0.29019,3449.3,3449.1,0.2902]
[1735866160540,0.29019,3449.3,3449.2,0.29019]
[1735866160745,0.29018,3449.4,3449.2,0.29019]
[1735866160941,40.8,3449.3,3449.2,0.29019]
[1735866161446,40.8,3449.3,3449.1,0.2902]
[1735866161646,41.09018,3449.3,3449.1,0.2902]
[1735866162142,40.8,3449.3,3448.7,11.19857739]
[1735866162345,41.09019,3449.3,3449.1,0.2902]
[1735866162544,0.29019,3449.2,3449.1,0.2902]
[1735866162737,41.09019,3449.3,3449.1,0.2902]
[1735866165045,40.8,3449.3,3449.1,0.2902]
[1735866165240,41.09019,3449.3,3449.1,0.2902]
[1735866166344,40.8,3449.3,3449.1,0.2902]
[1735866167246,40.8,3449.3,3448.7,6.63698345]
[1735866167446,40.8,3449.3,3449.2,0.29019]
[1735866167647,40.8,3449.3,3448.7,6.63698345]
[1735866168038,40.8,3449.3,3448.7,4.3398]
[1735866168342,0.29022,3448.9,3448.7,0.29023]
[1735866168955,0.29022,3448.9,3448.8,0.29023]
[1735866169148,0.29022,3448.9,3448.6,4.56159394]
[1735866169351,0.29022,3448.9,3448.7,0.29023]
[1735866169542,40.8,3449.3,3448.7,0.29023]
[1735866169543,2.27738701,3449.2,3448.7,0.29023]
[1735866169744,0.29022,3448.9,3448.7,0.29023]
[1735866170344,0.29022,3448.9,3448.8,0.29023]
[1735866171150,0.29022,3448.9,3448.7,0.29023]
[1735866171450,43.07738701,3449.3,3448.4,3.42918345]
[1735866171646,0.2902,3449.1,3448.9,0.29021]
[1735866175282,0.2902,3449.1,3449.0,0.29021]
[1735866176950,40.8,3449.3,3448.9,1.01009495]
[1735866177157,2.27738701,3449.4,3449.1,1.01009495]
[1735866177386,2.27738701,3449.4,3449.3,1.30027495]
[1735866177551,2.27738701,3449.4,3449.3,4.50807495]
[1735866178258,2.27738701,3449.4,3449.3,5.79485426]
[1735866179655,5.9593211,3450.0,3449.8,0.29014]
[1735866179656,0.29013,3450.0,3449.8,0.29014]
[1735866179856,2.27738701,3450.2,3449.8,0.29014]
[1735866180057,0.29013,3449.9,3449.8,0.29014]
[1735866180358,0.29013,3449.9,3449.3,5.50467426]
[1735866180580,0.29013,3449.9,3449.7,0.29015]
[1735866180754,0.29014,3449.8,3449.7,0.29015]
[1735866181059,0.29016,3449.7,3449.5,0.29017]
[1735866181259,0.29016,3449.6,3449.5,0.29017]
[1735866181448,3.2078,3449.8,3449.3,1.132]
[1735866181757,0.29018,3449.5,3449.4,0.29018]
[1735866181960,40.8,3449.7,3449.4,0.29018]
[1735866182151,0.29017,3449.5,3449.4,0.29018]
[1735866182454,0.29018,3449.4,3449.3,1.42218]
[1735866183559,0.29018,3449.4,3449.3,1.132]
[1735866183860,0.29017,3449.5,3449.3,1.132]
[1735866184054,0.29017,3449.5,3449.4,0.29018]
[1735866184251,0.29017,3449.5,3449.3,1.132]
[1735866184464,0.29017,3449.5,3449.3,1.42218]
[1735866184860,0.29017,3449.5,3449.4,0.29018]
[1735866185953,0.29017,3449.5,3449.3,1.42218]
[1735866186161,40.8,3449.7,3449.3,1.132]
[1735866186363,0.29018,3449.4,3449.3,1.132]
[1735866187365,0.29018,3449.4,3449.3,1.42218]
[1735866187664,40.8,3449.7,3449.3,1.42218]
[1735866187961,0.29017,3449.5,3449.3,1.42218]
[1735866188163,40.8,3449.7,3449.3,1.42218]
[1735866188362,0.29018,3449.4,3449.3,1.42218]
[1735866190458,0.29018,3449.4,3449.3,0.29018]
[1735866190866,0.29017,3449.5,3449.3,0.29018]
[1735866193065,0.29017,3449.5,3449.4,0.29018]
[1735866193566,0.29017,3449.5,3449.3,0.29018]
[1735866193970,2.27738701,3449.6,3449.3,0.29018]
[1735866194170,0.29018,3449.4,3449.3,0.29018]
[1735866194467,0.29017,3449.5,3449.3,0.29018]
[1735866196166,0.29018,3449.4,3449.3,0.29018]
[1735866196467,2.56755701,3449.5,3449.3,0.29018]
[1735866196869,2.56755701,3449.5,3449.4,0.29018]
[1735866198370,2.56755701,3449.5,3449.4,1.29998036]
[1735866200367,2.27738701,3449.5,3449.4,1.29998036]
[1735866201474,3.41572467,3449.6,3449.5,0.29017]
[1735866201475,2.27738701,3449.6,3449.5,0.29017]
[1735866202685,43.07738701,3449.7,3449.6,0.29016]
[1735866203470,43.07738701,3449.7,3449.6,1.29996036]
[1735866203873,40.8,3449.7,3449.6,1.29996036]
[1735866207380,2.27996749,3449.8,3449.7,0.29015]
[1735866207680,0.76370175,3449.8,3449.7,4.50775036]
[1735866207870,3.41572467,3449.9,3449.8,0.29014]
[1735866208071,3.41572467,3449.9,3449.8,1.29994036]
[1735866208273,3.41572467,3449.9,3449.8,6.29994036]
[1735866208473,3.41572467,3449.9,3449.8,1.29994036]
[1735866208775,6.62352467,3450.6,3449.8,1.00980036]
[1735866209078,3.41572467,3450.6,3450.5,0.29008]
[1735866209282,3.41572467,3450.6,3450.5,1.29988036]
[1735866210366,0.29006,3450.8,3450.6,0.29007]
[1735866210783,3.41572467,3450.9,3450.4,1.131]
[1735866211077,0.29008,3450.6,3450.4,1.42109]
[1735866211473,0.29008,3450.6,3450.4,1.131]
[1735866211678,0.29008,3450.6,3450.4,1.42109]
[1735866213671,0.29008,3450.6,3450.4,1.131]
[1735866213872,0.29005,3450.9,3450.5,0.29008]
[1735866214077,0.29007,3450.8,3450.5,0.29008]
[1735866214277,0.29005,3450.9,3450.6,0.29007]
[1735866214478,0.29007,3450.7,3450.5,0.29008]
[1735866215577,0.29007,3450.7,3450.6,0.29008]
[1735866215778,0.29006,3450.8,3450.6,0.29008]
[1735866216082,0.29007,3450.7,3450.6,0.29008]
[1735866216478,0.29006,3450.8,3450.6,0.29008]
[1735866217580,3.2078,3451.0,3450.4,1.131]
[1735866217782,0.29005,3450.9,3450.7,0.29006]
[1735866218487,3.49784,3451.0,3450.9,0.29005]
[1735866218680,3.2078,3451.0,3450.9,0.29005]
[1735866218977,3.49784,3451.0,3450.9,0.29005]
[1735866219182,3.2078,3451.0,3450.9,0.29005]
[1735866220280,3.49784,3451.0,3450.9,0.29005]
[1735866220880,3.2078,3451.0,3450.9,0.29005]
[1735866221075,3.2078,3451.0,3450.4,1.131]
[1735866221382,3.49785,3451.0,3450.8,0.29005]
[1735866222285,3.49785,3451.0,3450.4,1.131]
[1735866222490,3.49785,3451.0,3450.9,0.29005]
[1735866223084,0.29005,3450.9,3450.8,0.29006]
[1735866223275,0.29006,3450.8,3450.7,0.29007]
[1735866223480,0.29006,3450.8,3450.4,1.131]
[1735866223481,0.29005,3450.9,3450.8,0.29006]
[1735866224085,0.29006,3450.8,3450.5,0.29008]
[1735866224287,3.2078,3450.6,3450.1,4.55355672]
[1735866224486,0.29011,3450.2,3450.1,3.85245672]
[1735866224785,41.09011,3450.2,3450.1,3.85245672]
[1735866224981,41.09011,3450.2,3449.9,0.29013]
[1735866224982,0.29012,3450.1,3449.9,0.29013]
[1735866225181,0.29012,3450.1,3449.8,3.2078]
[1735866225380,40.8,3450.2,3449.8,3.2078]
[1735866225582,40.8,3450.2,3450.1,0.29012]
[1735866230988,40.8,3450.2,3449.8,3.2078]
[1735866231185,0.29012,3450.1,3450.0,0.29013]
[1735866231388,41.09011,3450.2,3449.9,0.29013]
[1735866231692,41.09011,3450.2,3450.0,0.29012]
[1735866231992,40.8,3450.2,3450.0,0.29012]
[1735866232192,40.8,3450.2,3449.7,2.29575809]
[1735866232487,40.8,3450.2,3450.0,0.29012]
[1735866232694,41.09011,3450.2,3450.0,0.29012]
[1735866234185,40.8,3450.2,3450.0,0.29012]
[1735866234430,41.09011,3450.2,3450.0,0.29012]
[1735866234692,40.8,3450.2,3450.0,0.29012]
[1735866234893,41.09011,3450.2,3450.0,0.29012]
[1735866235286,0.29012,3450.1,3449.9,0.29013]
[1735866235806,0.29015,3449.8,3449.6,0.29015]
[1735866236296,0.29016,3449.7,3449.2,10.03813508]
[1735866236687,3.2078,3450.0,3449.2,10.03813508]
[1735866236989,3.2078,3449.5,3449.1,0.2902]
[1735866237288,3.2078,3449.5,3449.0,6.83033508]
[1735866237491,0.29019,3449.3,3449.1,0.2902]
[1735866237792,0.2902,3449.2,3449.0,6.83033508]
[1735866237989,0.29019,3449.3,3449.0,7.12053508]
[1735866238396,0.29019,3449.3,3449.1,0.2902]
[1735866239385,40.8,3449.2,3449.1,0.2902]
[1735866241090,0.29016,3449.6,3449.4,0.29017]
[1735866241392,0.29017,3449.5,3449.3,0.29018]
[1735866241697,41.09018,3449.4,3449.2,0.29019]
[1735866242389,40.8,3449.4,3449.3,0.29018]
[1735866243582,0.29017,3449.5,3449.3,0.29018]
[1735866244189,41.09017,3449.5,3449.3,0.29018]
[1735866246295,41.09017,3449.5,3449.4,0.29018]
[1735866247142,44.29797,3449.5,3449.4,0.29018]
[1735866247398,3.2078,3449.5,3449.4,0.29018]
[1735866248390,40.8,3449.7,3449.4,2.29575809]
[1735866248702,3.41572467,3449.8,3449.7,0.29015]
[1735866248890,3.41572467,3449.8,3449.7,2.58590809]
[1735866249395,47.42352467,3450.3,3449.7,2.29575809]
[1735866249596,47.42352467,3450.3,3450.2,0.29011]
[1735866250701,44.0078,3450.3,3450.2,0.29011]
[1735866255405,44.2979,3450.3,3450.1,1.42111]
[1735866255602,44.2979,3450.3,3449.7,2.29575809]
[1735866255913,44.0078,3450.3,3449.5,4.3388]
[1735866256108,0.29016,3449.6,3449.5,4.3388]
[1735866256646,41.09016,3449.6,3449.5,4.3388]
[1735866256802,40.8,3449.6,3449.5,0.29017]
[1735866257304,41.09016,3449.6,3449.4,0.29017]
[1735866257707,40.8,3449.6,3449.1,3.42675809]
[1735866257894,3.498,3449.2,3449.0,0.2902]
[1735866258097,3.2078,3449.2,3449.0,0.2902]
[1735866258298,3.2078,3449.2,3449.1,0.2902]
[1735866259201,0.29018,3449.4,3449.2,0.29019]
[1735866259403,44.0078,3449.6,3448.8,5.50355809]
[1735866259603,0.29017,3449.5,3448.8,5.50355809]
[1735866260107,0.29017,3449.5,3449.2,0.29018]
[1735866260310,44.0078,3449.6,3449.2,0.29018]
[1735866260507,0.29017,3449.5,3449.2,0.29018]
[1735866260704,44.0078,3449.6,3449.2,0.29018]
[1735866260907,0.29018,3449.4,3449.2,0.29018]
[1735866261948,0.29017,3449.5,3449.3,0.29018]
[1735866262201,44.0078,3449.6,3449.2,0.29019]
[1735866262202,0.29018,3449.4,3449.2,0.29019]
[1735866262407,0.29017,3449.5,3448.8,5.50355809]
[1735866262610,0.29018,3449.4,3449.2,0.29019]
[1735866262809,44.0078,3449.6,3448.8,5.50355809]
[1735866263010,0.29017,3449.5,3449.3,0.29018]
[1735866263405,0.29017,3449.5,3448.8,5.50355809]
[1735866263406,44.0078,3449.6,3448.8,5.50355809]
[1735866263607,44.29796,3449.6,3449.4,0.29017]
[1735866264417,44.0078,3449.6,3449.5,0.29017]
[1735866265108,3.2078,3449.6,3449.5,0.29017]
[1735866265711,3.2078,3449.6,3449.5,1.42117]
[1735866265902,3.41572467,3449.8,3449.7,0.29015]
[1735866266106,3.2078,3450.0,3449.7,2.29575809]
[1735866266304,3.2078,3450.0,3449.9,0.29013]
[1735866267007,40.8,3450.2,3450.1,0.29012]
[1735866268110,6.62352467,3450.5,3450.4,0.29009]
[1735866268512,47.42352467,3450.5,3450.4,0.29009]
[1735866269007,44.0078,3450.5,3450.4,0.29009]
[1735866270814,40.8,3450.5,3450.4,0.29009]
[1735866273522,6.62352467,3450.6,3450.5,0.29008]
[1735866274927,40.8,3450.9,3450.8,0.29006]
[1735866281316,44.0078,3450.9,3450.8,0.29006]
[1735866289525,3.2078,3450.9,3450.8,0.29006]
[1735866292018,44.0078,3450.9,3450.8,0.29006]
[1735866296831,40.8,3450.9,3450.8,0.29006]
[1735866299328,3.2078,3451.3,3450.6,2.29575809]
[1735866299628,3.2078,3451.3,3451.2,0.29002]
[1735866299826,44.0078,3451.3,3451.2,0.29002]
[1735866302026,0.29005,3451.0,3450.8,0.29005]
[1735866302330,0.29004,3451.1,3451.0,0.29004]
[1735866302531,0.29003,3451.2,3451.1,0.29003]
[1735866302831,0.29004,3451.1,3450.5,1.131]
[1735866303731,0.29004,3451.1,3451.0,0.29004]
[1735866304036,44.0078,3451.3,3450.5,1.131]
[1735866304231,0.29004,3451.1,3450.9,0.29004]
[1735866305661,0.29004,3451.1,3450.5,1.131]
[1735866305835,0.29004,3451.1,3451.0,0.29004]
[1735866306036,44.0078,3451.3,3450.5,1.131]
[1735866306234,0.29005,3451.0,3450.5,1.131]
[1735866306438,0.29005,3451.0,3450.9,0.29005]
[1735866307530,44.0078,3451.3,3450.5,1.131]
[1735866307769,44.0078,3451.3,3450.9,0.29004]
[1735866308042,0.29004,3451.1,3450.9,0.29004]
[1735866308233,0.29004,3451.0,3450.9,0.29004]
[1735866308534,3.2078,3451.0,3450.7,2.29575809]
[1735866308735,3.41572467,3451.2,3450.9,0.29005]
[1735866308939,3.41572467,3451.2,3451.1,0.29003]
[1735866310335,0.29003,3451.2,3451.1,0.29003]
[1735866310540,3.41572467,3451.4,3450.9,1.00888812]
[1735866310736,0.29002,3451.3,3451.2,0.29002]
[1735866311037,0.29002,3451.3,3451.1,0.29003]
[1735866311332,40.8,3451.2,3451.1,0.29003]
[1735866312336,41.09002,3451.2,3451.1,0.29003]
[1735866312538,40.8,3451.2,3451.1,0.29003]
[1735866312839,44.65095654,3451.2,3451.1,0.29003]
[1735866313149,0.29003,3451.1,3450.8,0.29005]
[1735866313334,44.65095654,3451.2,3450.6,6.83033508]
[1735866313335,3.2078,3451.0,3450.6,6.83033508]
[1735866313530,3.49785,3451.0,3450.9,0.29005]
[1735866314168,6.91357467,3451.0,3450.9,0.29005]
[1735866314329,6.62352467,3451.0,3450.9,0.29005]
[1735866317355,3.64303979,3451.0,3450.9,0.29005]
[1735866318943,3.2078,3451.0,3450.9,0.29005]
[1735866320249,3.64303979,3451.0,3450.9,4.85988022]
[1735866322253,3.64303979,3451.0,3450.9,4.56983022]
[1735866322254,3.93307979,3451.0,3450.9,4.56983022]
[1735866322455,3.64303979,3451.0,3450.9,4.85988022]
[1735866322751,3.64303979,3451.0,3450.9,0.29005]
[1735866326347,3.93307979,3451.0,3450.9,0.29005]
[1735866326550,3.64303979,3451.0,3450.9,0.29005]
[1735866327355,3.64303979,3451.0,3450.7,6.83033508]
[1735866327546,0.29006,3450.8,3450.7,6.83033508]
[1735866328652,10.22677415,3450.8,3450.3,6.83033508]
[1735866328847,0.29007,3450.7,3450.6,0.29007]
[1735866330259,3.49787,3450.7,3450.6,0.29007]
[1735866330657,3.93310979,3450.7,3450.6,0.29007]
[1735866330858,3.64303979,3450.7,3450.6,0.29008]
[1735866331045,0.43523979,3450.7,3450.2,7.96133508]
[1735866331261,0.29007,3450.7,3450.6,0.29008]
[1735866331457,3.49787,3450.7,3450.6,0.29008]
[1735866332055,0.29008,3450.6,3450.5,0.29008]
[1735866332454,0.29008,3450.5,3450.4,1.29929293]
[1735866332861,0.29008,3450.6,3450.5,0.29008]
[1735866333159,0.29008,3450.6,3450.4,1.29928293]
[1735866333355,0.29008,3450.6,3450.4,1.00920293]
[1735866333560,0.29008,3450.6,3450.5,0.29008]
[1735866333951,0.29008,3450.5,3450.4,1.00920293]
[1735866334153,0.29008,3450.5,3450.4,1.29929293]
[1735866334852,4.9993873,3450.6,3450.4,1.00920293]
[1735866335065,5.2894673,3450.6,3450.5,0.29008]
[1735866335454,4.85417319,3450.6,3450.5,0.29008]
[1735866335656,0.29008,3450.5,3450.4,1.00920293]
[1735866336659,0.2901,3450.3,3450.2,2.43030293]
[1735866337059,4.56409319,3450.5,3449.9,10.05317246]
[1735866337357,1.00920293,3450.2,3449.9,10.05317246]
[1735866337661,1.00920293,3450.4,3449.9,11.06237539]
[1735866338457,0.29012,3450.1,3450.0,0.29012]
[1735866338661,4.14712556,3450.1,3450.0,0.29012]
[1735866338856,44.94712556,3450.1,3450.0,0.29012]
[1735866339458,44.65700556,3450.1,3450.0,0.29012]
[1735866341357,40.8,3450.1,3450.0,0.29012]
[1735866341551,43.3695558,3450.1,3450.0,0.29012]
[1735866341962,43.0794358,3450.1,3450.0,0.29012]
[1735866342261,43.3695558,3450.1,3450.0,0.29012]
[1735866342962,43.0794358,3450.1,3450.0,0.29012]
[1735866343264,40.8,3450.1,3450.0,0.29012]
[1735866343452,41.09012,3450.1,3450.0,0.29012]
[1735866345165,40.8,3450.1,3449.7,0.29015]
[1735866345567,0.29013,3450.0,3449.7,0.29015]
[1735866345770,0.29013,3450.0,3449.8,0.29014]
[1735866347261,43.07813224,3450.1,3449.6,3.427662]
[1735866347463,43.07813224,3450.1,3449.7,0.29015]
[1735866347464,0.29014,3449.9,3449.7,0.29015]
[1735866348472,0.29013,3450.0,3449.8,0.29014]
[1735866351270,0.29013,3450.0,3449.6,2.296662]
[1735866351571,0.29013,3450.0,3449.9,0.29013]
[1735866352070,0.29013,3450.0,3449.6,2.296662]
[1735866352286,0.29013,3450.0,3449.8,0.29014]
[1735866353468,0.29013,3450.0,3449.7,0.29015]
[1735866353666,0.29013,3450.0,3449.8,0.29013]
[1735866353861,0.29013,3450.0,3449.9,0.29013]
[1735866354066,0.29013,3450.0,3449.8,0.29013]
[1735866354473,40.8,3450.1,3449.9,0.29013]
[1735866354667,0.29013,3450.0,3449.9,0.29013]
[1735866354865,0.29014,3449.9,3449.7,0.29014]
[1735866355067,0.29014,3449.9,3449.6,2.296662]
[1735866355266,0.29014,3449.9,3449.5,4.3388]
[1735866355267,0.29014,3449.9,3449.8,0.29014]
[1735866356073,0.29013,3450.0,3449.8,0.29014]
[1735866356769,2.56826224,3450.0,3449.8,0.29014]
[1735866357167,2.27813224,3450.0,3449.9,0.29013]
[1735866359275,2.27813224,3450.0,3449.9,2.586792]
[1735866359481,3.2078,3450.2,3449.9,2.296662]
[1735866359774,3.2078,3450.2,3450.1,0.29012]
[1735866364282,2.27813224,3450.6,3450.1,0.7253]
[1735866364471,2.27813224,3450.6,3450.5,0.29008]
[1735866366181,6.62948809,3450.8,3450.4,6.85033448]
[1735866366182,3.2078,3450.8,3450.4,6.85033448]
[1735866366386,3.2078,3450.8,3450.7,0.29007]
[1735866367099,3.2078,3450.8,3450.7,2.586732]
[1735866367381,40.8,3450.9,3450.8,0.29006]
[1735866367777,2.27813224,3451.1,3451.0,0.29004]
[1735866367978,2.27813224,3451.1,3451.0,3.717702]
[1735866369187,2.27813224,3451.4,3451.3,0.29002]
[1735866370210,2.27813224,3451.4,3451.0,2.296662]
[1735866370385,2.27813224,3451.4,3451.2,0.29002]
[1735866370689,2.56814224,3451.5,3451.3,0.29002]
[1735866370979,2.27813224,3451.5,3451.1,1.131]
[1735866371288,2.27813224,3451.5,3451.4,0.29001]
[1735866371983,2.27813224,3451.6,3451.3,2.296662]
[1735866372186,2.27813224,3451.6,3451.5,0.29]
[1735866373778,6.62948809,3451.7,3451.3,2.296662]
[1735866373779,3.2078,3451.7,3451.3,2.296662]
[1735866373975,3.2078,3451.7,3451.6,2.586652]
[1735866376488,40.8,3452.1,3452.0,0.28996]
[1735866379086,2.27813224,3452.6,3452.5,0.28992]
[1735866379490,43.07813224,3452.6,3452.5,0.28992]
[1735866380090,40.8,3452.6,3452.5,0.28992]
[1735866381390,0.28992,3452.5,3452.2,0.28993]
[1735866381585,0.28992,3452.4,3452.2,0.28994]
[1735866381895,3.2078,3452.3,3452.2,0.28994]
[1735866382594,44.29773,3452.3,3452.2,0.28994]
[1735866382841,44.0078,3452.3,3452.2,0.28994]
[1735866384588,40.8,3452.3,3452.2,0.28994]
[1735866386593,3.2078,3452.5,3452.4,0.28992]
[1735866390797,3.2078,3452.5,3452.4,1.41992]
[1735866391297,0.28988,3452.9,3452.7,0.2899]
[1735866392299,0.28988,3452.9,3452.4,1.13]
[1735866392300,0.28989,3452.9,3452.6,0.2899]
[1735866392488,0.28989,3452.9,3452.7,0.2899]
[1735866394494,3.2078,3453.0,3452.4,1.13]
[1735866394696,3.2078,3453.0,3452.9,0.28988]
[1735866395600,3.49767,3453.0,3452.9,0.28988]
[1735866397503,3.2078,3453.0,3452.9,0.28988]
[1735866398803,3.49767,3453.0,3452.9,0.28988]
[1735866399199,3.2078,3453.0,3452.9,0.28988]
[1735866399402,3.49767,3453.0,3452.9,0.28988]
[1735866400099,3.2078,3453.0,3452.9,0.28988]
[1735866400294,3.49767,3453.0,3452.9,0.28988]
[1735866401001,2.27813224,3453.3,3453.2,0.28986]
[1735866401222,6.62948809,3453.4,3453.2,0.28986]
[1735866401223,6.62948809,3453.4,3453.2,3.426662]
[1735866401407,3.42168809,3453.4,3453.3,0.28985]
[1735866402605,3.2078,3454.0,3453.9,0.2898]
[1735866402807,3.2078,3454.0,3453.9,1.13]
[1735866403205,44.0078,3454.0,3453.9,1.13]
[1735866404796,44.29759,3454.0,3453.9,1.13]
[1735866405011,44.29759,3454.0,3453.9,0.0590674]
[1735866418022,44.0078,3454.0,3453.7,0.28981]
[1735866418223,0.2898,3453.9,3453.8,1.13]
[1735866419325,0.2898,3453.9,3453.8,1.41981]
[1735866419526,0.2898,3453.9,3453.8,1.13]
[1735866420213,44.0078,3454.0,3453.5,2.296662]
[1735866420413,0.28982,3453.7,3453.6,1.41982]
[1735866420621,44.0078,3454.0,3453.5,2.296662]
[1735866420827,0.28984,3453.4,3453.3,0.28984]
[1735866421027,0.28984,3453.4,3453.3,1.13]
[1735866421513,3.2078,3453.6,3453.2,2.296662]
[1735866421717,3.2078,3453.6,3453.3,1.41985]
[1735866421927,0.28984,3453.5,3453.3,1.41985]
[1735866422122,3.2078,3453.6,3453.3,1.41985]
[1735866422326,0.28984,3453.4,3453.3,1.13]
[1735866422729,0.28987,3453.1,3453.0,0.28987]
[1735866422927,0.28987,3453.1,3453.0,1.41987]